Cogmind - Beta 14 @@@ ROGUE MODE // 2024.08.14 @ 02:54:58 Player: Khanable Result: Destroyed by G-34 Mercenary with Small Laser Performance ------------- Evolutions (1) 500 Regions Visited (2) 400 Robots Destroyed (72) 360 Value Destroyed (1223) 1223 Prototype IDs (2) 40 Alien Tech Used (0) 0 Bonus (48) 48 TOTAL SCORE: 2571 Bonus ------- High Alert Combat Kills 48 Cogmind --------- Core Integrity 0/400 Matter 280/300 Energy 124/125 System Corruption 0% Temperature Cool (6) Movement Rolling (95) Ox1 Location -9/Materials Parts ------- > --- POWER (1) -------- Light Ion Engine > --- PROPULSION (2) --- Wheel > --- UTILITY (4) ------ Medium Storage Unit Propulsion Shielding > --- WEAPON (2) ------- Mini Grenade Launcher Mace > --- INVENTORY (10) --- Light Ion Engine Flight Unit Flight Unit Flight Unit Flight Unit VTOL Module Peak State ------------ > --- POWER ------------ Ion Engine > --- PROPULSION ------- Compact Wheel Compact Wheel > --- UTILITY ---------- Medium Storage Unit Sensor Array Medium Armor Plating Hardened Light Armor Plating > --- WEAPON ----------- Heavy Assault Rifle Heavy Assault Rifle > --- INVENTORY -------- Light Ion Engine Flight Unit Flight Unit Flight Unit Flight Unit Flight Unit Propulsion Shielding Light Assault Rifle Light Assault Rifle Grenade Launcher [Rating: 14] Favorites ----------- Power Ion Engine Engine Ion Engine Propulsion Wheel Wheel Wheel Hover Unit Hover Unit Flight Unit Flight Unit Utility Improved Terrain Scanner Device Improved Terrain Scanner Storage Small Storage Unit Processor Terrain Scan Processor Protection Medium Armor Plating Weapon Mining Laser Energy Gun Medium Laser Energy Cannon Beam Cannon Ballistic Gun Light Assault Rifle Launcher Mini Grenade Launcher Special Weapon Mining Laser Impact Weapon Mace Build | -11 -10 -9 ------- Run | Yrd Mat Mat Slots Evolved 2 | . . 2 Power . | . . . Propulsion . | . . . Utility 2 | . . 2 Weapon . | . . . Parts Attached 81 | 19 18 44 Power 15 | 3 2 10 Engine 15 | 3 2 10 Core . | . . . Reactor . | . . . Propulsion 15 | 6 2 7 Treads . | . . . Leg . | . . . Wheel 12 | 6 2 4 Hover 1 | . . 1 Flight 2 | . . 2 Utility 20 | 3 7 10 Device 10 | 2 5 3 Storage 4 | 1 2 1 Processor 1 | . . 1 Hackware . | . . . Protection 5 | . . 5 Artifact . | . . . Weapon 31 | 7 7 17 Energy Gun 6 | 4 2 . Energy Cannon 2 | . 2 . Ballistic Gun 15 | 2 2 11 Ballistic Cannon . | . . . Launcher 3 | . . 3 Special Weapon 2 | 1 1 . Impact Weapon 3 | . . 3 Slashing Weapon . | . . . Piercing Weapon . | . . . Special Melee Weapon . | . . . Unidentified Prototypes 2 | . . 2 Parts Lost 25 | 4 3 18 Power 4 | 1 1 2 Propulsion 6 | 1 . 5 Utility 9 | 1 1 7 Weapon 6 | 1 1 4 Highest Loss Streak 6 | 4 2 6 To Critical Strikes 1 | . . 1 Average Slot Usage (%) 81 | . 95 75 Engine 10 | . 12 9 Wheel 16 | . 28 12 Device 10 | . 13 9 Storage 11 | . 14 10 Protection 7 | . . 10 Energy Gun 3 | . 11 . Ballistic Gun 11 | . 2 15 Launcher 1 | . . 2 Special Weapon 2 | . 9 . Impact Weapon 2 | . . 3 Peak Build Rating 14 | 10 10 14 Average Rating 9 | 9 8 10 On Entrance 5 | . 8 8 Naked Turns 4 | . . 4 Heaviest Build 36 | 14 19 36 Greatest Support 32 | 32 20 32 Greatest Overweight (x) 7 | . . 7 Average Overweight (x) . | . . . Largest Inventory Capacity 25 | 8 25 10 Average Capacity 8 | 7 9 9 Most Carried 10 | 8 10 10 Average Carried 7 | 7 9 8 Final Capacity 10 | 8 10 10 Final Carried 9 | 7 9 6 Class Distribution -------------------- 83% | Mutant 16% | Scavenger-Mutant Dominant Class ---------------- Scavenger-Mutant | -10/Materials Mutant | -9/Materials Resources | -11 -10 -9 ----------- Run | Yrd Mat Mat Matter Collected 1630 | 503 169 958 Remotely . | . . . Salvage Created 1985 | 322 242 1421 Parts 141 | 28 13 100 Haulers Intercepted . | . . . Recyclers Shooed 4 | . . 4 Parts Field Recycled . | . . . Retrieved Matter . | . . . Parts Self-Destructed . | . . . Prevented . | . . . Kills | -11 -10 -9 ------- Run | Yrd Mat Mat Combat Hostiles Destroyed 40 | . 7 33 Guns 22 | . 3 19 Cannons 4 | . 4 . AOE 14 | . . 14 Classes Destroyed 9 | 3 3 3 Worker 7 | 4 . 3 Builder 5 | . . 5 Tunneler 9 | 9 . . Recycler 8 | 1 . 7 Operator 1 | . . 1 Watcher 2 | . 1 1 Swarmer 18 | . 3 15 Grunt 17 | . 4 13 Sentry 5 | . . 5 Best Kill Streak 12 | 4 3 12 Combat Bots Only 9 | . 3 9 Max Kills in Single Turn 3 | 2 1 3 Gunslinging 1 | . . 1 Exploded 3 | . . 3 Melee . | . . . Uniques/NPCs Destroyed . | . . . Combat | -11 -10 -9 -------- Run | Yrd Mat Mat Hostile Shots Fired 316 | . 38 278 Missed 77 | . 14 63 Damage Taken 2994 | 466 287 2241 Core 624 | 136 86 402 Absorbed by Shields 138 | . . 138 Core Remaining (%) 28 | 45 11 . Volleys Fired 436 | 254 61 121 Largest 2 | 2 2 2 Hottest 110 | 100 110 46 Shots Fired 593 | 292 85 216 Gun 341 | 95 52 194 Cannon 18 | . 18 . Launcher 22 | . . 22 Special 212 | 197 15 . Kinetic 252 | 47 11 194 Thermal 280 | 229 51 . Explosive 22 | . . 22 Electromagnetic 39 | 16 23 . Robot Hit Streak 18 | 18 7 16 Robot Miss Streak 6 | 4 5 6 Penetration Max . | . . . Secondary Targets 5 | . . 5 Max Gunslinging Chain 1 | . . 1 Shots Hit Robots 218 | 51 37 130 Core Hits 114 | 17 12 85 Critical Kills 1 | . . 1 Critical Parts Destroyed 5 | 2 . 3 Critical Strikes 10 | 5 . 5 Burn 3 | 3 . . Destroy 4 | 2 . 2 Smash 3 | . . 3 Melee Attacks 19 | . . 19 Impact 19 | . . 19 Slashing . | . . . Piercing . | . . . Sneak Attacks 7 | . . 7 Combat Hostiles . | . . . Follow-up Attacks . | . . . Damage Inflicted 4121 | 754 590 2777 Guns 2050 | 580 376 1094 Cannons 174 | . 174 . Explosions 1335 | 174 34 1127 Melee 556 | . . 556 Ramming 6 | . 6 . Kinetic 1314 | 162 58 1094 Thermal 734 | 400 334 . Explosive 1127 | . . 1127 Electromagnetic 384 | 192 192 . Impact 556 | . . 556 Slashing . | . . . Piercing . | . . . Highest Corruption 10 | 10 10 . Average Corruption 10 | 10 10 . Corruption Purged . | . . . Corruption Blocked . | . . . Effects 50 | 27 23 . Message Errors 13 | 9 4 . Matter Fused 10 | 5 5 . Heat Flow Errors 4 | 2 2 . Energy Discharges 8 | 7 1 . Parts Rejected 1 | . 1 . Parts Fused 1 | . 1 . Data Loss (minor) 4 | 1 3 . Data Loss (major) 2 | 1 1 . Misfires 3 | 1 2 . Alerts 3 | 1 2 . Weapon Failures 1 | . 1 . Overload Shots . | . . . Overflow Damage 336 | . 4 332 Projectiles 4 | . 4 . Explosions 15 | . . 15 Melee 317 | . . 317 Knockbacks 2 | . . 2 Impact 2 | . . 2 Kinetic . | . . . Secondary . | . . . Self-Inflicted Damage 209 | 104 25 80 Shots 11 | 4 1 6 Rammed 1 | . 1 . Targets Rammed 1 | . 1 . Kicked . | . . . Crushed . | . . . Highest Temperature 306 | 300 306 85 Average Temperature 71 | 80 62 19 Received Heat Transfer 813 | . 105 708 Effects 4 | 4 . . Interference 4 | 4 . . Siege Activations . | . . . Robots Corrupted 2 | . . 2 Combat Hostiles . | . . . Parts Fried 14 | 1 1 12 Impact Corruptions 10 | . . 10 Robots Melted . | . . . Combat Hostiles . | . . . Parts Melted 3 | 3 . . Heat Transferred 1928 | 1138 790 . Parts Sabotaged . | . . . Parts Stolen . | . . . Parts Stripped . | . . . Power Chain Reactions 5 | 4 1 . Alert | -11 -10 -9 ------- Run | Yrd Mat Mat Peak Influence 635 | 50 228 635 Initial 71 | . 4 71 Average 70 | 2 109 299 Maximum Alert Level 2 | . 1 2 Low Security (%) 82 | 100 71 23 Level 1 13 | . 28 56 Level 2 4 | . . 20 Level 3 . | . . . Level 4 . | . . . Level 5 . | . . . High Security . | . . . Max Security . | . . . Squads Dispatched 5 | . 2 3 Investigation 1 | . 1 . Extermination . | . . . Reinforcement 3 | . 1 2 Assault 1 | . . 1 Garrison . | . . . Intercept . | . . . Searches Triggered . | . . . Construction Impeded . | . . . Haulers Reinforced . | . . . Active Scanning Responses . | . . . Cargo Convoy Interrupts . | . . . Stealth | -11 -10 -9 --------- Run | Yrd Mat Mat Distress Signals 2 | . . 2 Communications Jammed . | . . . Distress Signals . | . . . Times Spotted 75 | . 14 61 Peak Tracking Total 9 | . 4 9 Tactical Retreats 7 | . 2 5 Traps | -11 -10 -9 ------- Run | Yrd Mat Mat Traps Triggered 1 | . 1 . Indirectly . | . . . Trap Hack Attempts . | . . . Triggered . | . . . Disarmed . | . . . Reprogrammed . | . . . Reused . | . . . Traps Extracted . | . . . Installed . | . . . Triggered . | . . . Machines | -11 -10 -9 ---------- Run | Yrd Mat Mat Machines Disabled 1 | . . 1 Max in Single Turn 1 | . . 1 Machines Repaired . | . . . Machines Dismantled . | . . . Machines Sabotaged . | . . . Overloaded Fab Kills . | . . . Hacking | -11 -10 -9 --------- Run | Yrd Mat Mat Machines Accessed 6 | . 3 3 Terminals 4 | . 1 3 Fabricators . | . . . Repair Stations . | . . . Recycling Units 2 | . 2 . Scanalyzers . | . . . Garrison Access . | . . . Total Hacks 10 | . 5 5 Successful 6 | . 4 2 Failed 4 | . 1 3 Catastrophic 1 | . . 1 Database Lockouts . | . . . Manual 2 | . 1 1 Terminals 8 | . 3 5 Fabricators . | . . . Repair Stations . | . . . Recycling Units 2 | . 2 . Scanalyzers . | . . . Garrison Access . | . . . Terminal Hacks 4 | . 2 2 Maintenance Status 1 | . 1 . Hauler Manifests 1 | . 1 . Registered Components 1 | . . 1 Zone Layout 1 | . . 1 Fabricator Hacks . | . . . Repair Station Hacks . | . . . Recycling Unit Hacks 2 | . 2 . Report Inventory 2 | . 2 . Scanalyzer . | . . . Garrison Access Hacks . | . . . Unauthorized Hacks . | . . . Terminals . | . . . Fabricators . | . . . Repair Stations . | . . . Recycling Units . | . . . Scanalyzers . | . . . Garrison Access . | . . . Data Cores Recovered 1 | . . 1 Used . | . . . Hacking Detections 4 | . 1 3 Full Trace Events 1 | . . 1 Feedback Events . | . . . Feedback Blocked . | . . . Robot Schematics Acquired . | . . . Robots Built . | . . . Authchips . | . . . Time . | . . . Total Robot Build Rating . | . . . Part Schematics Acquired . | . . . Parts Built . | . . . Authchips . | . . . Time . | . . . Total Part Build Rating . | . . . Parts Repaired . | . . . Time . | . . . Parts Recycled . | . . . Recycled Matter . | . . . Retrieved Matter . | . . . Retrieved Components . | . . . Parts Scanalyzed . | . . . Part Schematics Acquired . | . . . Parts Damaged . | . . . Bothacking | -11 -10 -9 ------------ Run | Yrd Mat Mat Used RIF Installer . | . . . Robots Hacked . | . . . Non-combat . | . . . Combat . | . . . Robot Hacks Applied . | . . . Relay Couplers Released . | . . . Fabnet Peak Effective % . | . . . Robots Rewired . | . . . Allies Hacked . | . . . Hacks Repelled . | . . . Allies | -11 -10 -9 -------- Run | Yrd Mat Mat Total Allies . | . . . Largest Group . | . . . Highest-Rated Group . | . . . Highest-Rated Ally . | . . . Total Orders . | . . . Ally Attacks . | . . . Total Damage . | . . . Kills . | . . . Allies Corrupted . | . . . Allies Melted . | . . . Intel | -11 -10 -9 ------- Run | Yrd Mat Mat Robot Analysis Total . | . . . Derelict Logs Recovered . | . . . Drone Launches . | . . . Drone Recoveries . | . . . Exploration | -11 -10 -9 ------------- Run | Yrd Mat Mat Turns Passed 8279 | 5952 663 1664 Spaces Moved 3691 | 2390 471 830 Core 94 | 2 . 92 Treads . | . . . Legs . | . . . Wheels 3583 | 2388 471 724 Hover 9 | . . 9 Flight 5 | . . 5 Fastest Speed 50 | 50 80 50 Average Speed 91 | 83 80 123 Slowest Speed 440 | 100 80 440 Overloaded Moves . | . . . Propulsion Burnouts . | . . . Robots Hopped . | . . . Cave-ins Triggered 1 | 1 . . Exploration Rate (%) 56 | 45 56 67 Regions Visited 2 Branch Regions . Pre-discovered Areas . | . . . Known Exits Taken . | . . . Unknown Exits Taken 2 | 1 1 . Scrap Searched . | . . . Spaces Dug 101 | 72 15 14 Terrain Destroyed 214 | 110 18 86 Melee 9 | . . 9 Projectile 111 | 96 15 . AOE 94 | 14 3 77 Terrain Rammed . | . . . Walls Destroyed . | . . . Machines Disabled . | . . . Actions | -11 -10 -9 --------- Run | Yrd Mat Mat Total 7576 | 5688 641 1247 Wait 3261 | 2996 76 189 Move 3688 | 2388 470 830 Hop . | . . . Pick Up 39 | 18 6 15 Fast Attach 33 | 5 8 20 Attach 18 | 8 2 8 Detach 7 | 3 . 4 Swap 30 | 6 8 16 Drop 43 | 9 9 25 Fire 436 | 254 61 121 Melee 19 | . . 19 Ram 1 | . 1 . Kick . | . . . Crush . | . . . Escape Stasis 1 | 1 . . Rewire . | . . . Trap . | . . . Miscellaneous . | . . . Route ------- -11/Scrapyard -10/Materials (discovered 4 exits: *Mat x2 / [*Min x2]) -9/Materials (discovered 3 exits: [*Mat] / [*Min x2]) History --------- Turn | Location | Event 18 | -11/Scrapyard | Discovered new exit (range 16) 5192 | -11/Scrapyard | Crushed by falling debris 5193 | -11/Scrapyard | Core integrity fell below 50% 5193 | -11/Scrapyard | System corruption reached 10% 5223 | -11/Scrapyard | Lost 4 parts (1p1n1u1w) 5953 | -11/Scrapyard | Entered Materials 5954 | -10/Materials | Build established: Mutant 6015 | -10/Materials | Discovered new exit (range 8) 6087 | -10/Materials | Discovered new exit (range 16) 6191 | -10/Materials | Discovered new exit (range 4) 6263 | -10/Materials | Build established: Scavenger-Mutant 6530 | -10/Materials | Core integrity fell below 20% 6603 | -10/Materials | Discovered new exit (range 11) 6616 | -10/Materials | Entered another Materials area 6616 | -9/Materials | Evolved 2 slots: Utility x2 6880 | -9/Materials | Discovered new exit (range 15) 7124 | -9/Materials | Discovered new exit (range 15) 7396 | -9/Materials | Lost 3 parts (1p1u1w) 7908 | -9/Materials | Core integrity fell below 50% 7955 | -9/Materials | Core integrity fell below 20% 7972 | -9/Materials | Lost 6 parts (1n2u3w) 7983 | -9/Materials | Destroyed 9 combat bots 8060 | -9/Materials | Discovered new exit (range 11) 8168 | -9/Materials | Build established: Mutant 8216 | -9/Materials | First assault squad dispatched 8280 | -9/Materials | Destroyed by G-34 Mercenary with Small Laser Last Messages --------------- K-01 Serf collects debris. U-05 Engineer lays Concrete. K-01 Serf collects debris. U-05 Engineer lays Concrete. K-01 Serf collects debris. U-05 Engineer lays Concrete. K-01 Serf collects debris. U-05 Engineer lays Concrete. U-05 Engineer builds a Wall. U-05 Engineer lays Concrete. U-05 Engineer builds a Wall. K-01 Serf cleans the Pressure Siphon. ALERT: Significant disruption in Zone 4J, assault force dispatched. C-30 ARC bursts open, deploying its payload. G-47 Trooper unfolds itself. B-36 Bruiser unfolds itself. G-34 Mercenary unfolds itself. M-13 Machinist unfolds itself. Acquired Wheel. K-01 Serf cleans the Pressure Siphon. Map ----- +----------------------------------------------------+ | ????????????????????????????????????????????????? | | ????????????????????????????????????????????????? | | ????????????????????###########?????????????????? | | ????????????????????# #?????????????????? | | ?????????????#####??# #?????????????????? | | ?????????????# ##?#!! #??###########????? | | ?????????????? #?#!! #??# #????? | | ?????????####### ########+#####??# ##### #????? | | ?????????# + ######## #???# #????? | | ?????????# """ # ###### #???# #????? | | ?????????# "R" # ######+########+##### #????? | | ?????????# " " # + ##[ # #????? | | ?????????# # # """## # #????? | | ?????????# # # """## # #????? | | ?????????# """ # # """## * # #????? | | ??######## """ # + ############ #????? | | ??#* # """ + # """# #?# ###### | | ??# "" # #^ # """# """ ### %#T### | | ??# """# # # """# """ # * | | ??# S"# # # ] # """ # [ | | ??# ! #?#+### ########## + | | ??# #?# #?# ########## # | | ??####+###?# #?# # #]]] # [ | | ???# ### ### # #]]] g ## | | ???# [ # * ]] g ## | | ???# +=% @ ########"## [ | | ???# = # #??### + = | | ???# ######## ## #??# # # * #### | | ???### ###??????# ## #??## # #" | | ?????# #????????# ## ########???## # #"" | | ?????# ##########+###???? # ! / #|| | | ?????# ## #?????# # *# #"" | | ?????# "# #?????# [ # # #!! | | ?????# ##% """ #?????# # ## #"" | | ?????# ## """""#?????# # ## #" | | ###### ## """""#?????# ####### #### | | # # ##[ """"#?????# ???#### ^ ] | | # T # ## """ #?????# ?+ ^ ^ | | # # ## [! #?????# ??########### "" | | # # ######/###############+?????????????# "" | | # + % ????????? ???# "" | | # ####### ?????????"" # | | # #???#?# ?????????"T + | | # #?????# """ """ ""???????????" # | | # #?????# """ """ """ "???????????# | | ######?????# """ """ """ "????#??????##### | | ????????#??# ##+#???????# | | #??????#??## #???????# | | ??#????#?#?# #???????# | | ???????????# #???????# | +----------------------------------------------------+ Best States ------------- Heat Dissipation 39 Energy Generation 14 Energy Capacity 280 Matter Stores 300 Matter Capacity 300 Sight Range 16 Robot Scan Range 14 Terrain Scan Range 16 Terrain Scan Density 85 Armor Coverage 450 Propulsion Shielding 33 Evasion (%) 50 Item Schematics ----------------- None Robot Schematics ------------------ None Fabricated ------------ Nothing Alien Tech Used ----------------- None Achievements -------------- None Challenges ------------ None Game ------ Seed SeismicEnhancedFragment Manual? 0 Play Time 00:56:18 Cumulative 23.2 hours Start 2024.08.14 @ 01:59:28 End 2024.08.14 @ 02:54:58 Sessions 1 Manual Loads 0 Difficulty Rogue Special Mode None Game No. 26 Rogue 26 Adventurer 0 Explorer 0 Win Type - Total 0 Types 0/0/0/0/0/0/0/0/0 Lore% 5 Gallery% 22 Achievement% 21 Wizard Run 0 Options --------- Layout 1 ASCII 0 Keyboard 1 Movement Vi Keybinds 0 Fullscreen 1 Font 32/SmallcapsGlow Map View 77x35 Zoom Use 0% Tactical HUD 0 Map Filters NONE Filters NONE Steam 1 RUN: c01acba0-7a1a-4e49-991d-ed3bc98b8f48